Cogmind - Beta 13 @@@ ROGUE MODE // 2024.03.16 @ 19:07:33 Player: Cheeriohz Result: Destroyed by G-47 Trooper with Particle Gun Performance ------------- Evolutions (2) 1000 Regions Visited (6) 1200 Robots Destroyed (32) 160 Value Destroyed (806) 806 Prototype IDs (4) 80 Alien Tech Used (0) 0 Bonus (153) 153 TOTAL SCORE: 3399 Bonus ------- Follower Combat Kills 153 Cogmind --------- Core Integrity 0/550 Matter 194/300 Energy 98/100 System Corruption 3% Temperature Hot (286) Movement Core (200) Ox3 Location -8/Storage Parts ------- > --- POWER (1) -------- (None) > --- PROPULSION (4) --- (None) > --- UTILITY (4) ------ Medium Storage Unit > --- WEAPON (2) ------- (None) > --- INVENTORY (10) --- Small Storage Unit Advanced Targeting Computer Arc Projector Pulse Rifle Peak State ------------ > --- POWER ------------ Micro Nuclear Core > --- PROPULSION ------- Medium Treads Flight Unit Flight Unit Flight Unit > --- UTILITY ---------- Small Storage Unit Advanced Weight Redist. System Advanced Weight Redist. System Sensor Array > --- WEAPON ----------- Arc Projector Arc Projector > --- INVENTORY -------- Light Nuclear Core Micro Nuclear Core Medium Storage Unit Splice Drone Bay Pulse Rifle Advanced Beam Rifle Slug Cannon Rocket Launcher [Rating: 29] Favorites ----------- Power Ion Engine Engine Ion Engine Power Core Micro Nuclear Core Propulsion Flight Unit Treads Light Treads Leg Aluminum Leg Wheel Wheel Flight Unit Flight Unit Utility Sensor Array Device Sensor Array Storage Small Storage Unit Hackware Hacking Suite Protection Light Armor Plating Weapon Assault Rifle Energy Gun Pulse Rifle Ballistic Gun Assault Rifle Ballistic Cannon Slug Cannon Launcher Rocket Launcher Build | -11 -10 -10 -9 -9 -8 -8 ------- Run | Yrd Mat Min Mat Min Mat Sto Slots Evolved 4 | . . . 2 . 2 . Power . | . . . . . . . Propulsion 2 | . . . . . 2 . Utility 2 | . . . 2 . . . Weapon . | . . . . . . . Parts Attached 47 | . 3 3 11 . 13 17 Power 3 | . . 1 . . 1 1 Engine . | . . . . . . . Core 3 | . . 1 . . 1 1 Reactor . | . . . . . . . Propulsion 16 | . 1 2 3 . 5 5 Treads 8 | . . . . . 3 5 Leg 1 | . 1 . . . . . Wheel 2 | . . 2 . . . . Hover . | . . . . . . . Flight 5 | . . . 3 . 2 . Utility 14 | . 1 . 6 . 2 5 Device 7 | . 1 . 5 . . 1 Storage 3 | . . . . . 2 1 Processor . | . . . . . . . Hackware 1 | . . . 1 . . . Protection 3 | . . . . . . 3 Artifact . | . . . . . . . Weapon 14 | . 1 . 2 . 5 6 Energy Gun 10 | . 1 . 2 . 4 3 Energy Cannon . | . . . . . . . Ballistic Gun . | . . . . . . . Ballistic Cannon 2 | . . . . . . 2 Launcher 2 | . . . . . 1 1 Special Weapon . | . . . . . . . Impact Weapon . | . . . . . . . Slashing Weapon . | . . . . . . . Piercing Weapon . | . . . . . . . Special Melee Weapon . | . . . . . . . Unidentified Prototypes 4 | . . . 2 . 2 . Corrupted Parts 1 | . . . . . . 1 System Corruption 3 | . . . . . . 3 Parts Lost 18 | . 1 . . . 1 16 Power 2 | . . . . . . 2 Propulsion 6 | . . . . . 1 5 Utility 4 | . . . . . . 4 Weapon 6 | . 1 . . . . 5 Highest Loss Streak 15 | . 1 . . . 1 15 To Critical Strikes . | . . . . . . . Average Slot Usage (%) 96 | . 97 100 97 100 99 90 Engine 5 | . 14 11 . . . . Core 5 | . . 2 11 11 9 8 Treads 7 | . . . . . 5 25 Leg 7 | . 28 11 . . . . Wheel 6 | . . 16 9 . . . Flight 7 | . . . 12 22 30 6 Device 17 | . 12 14 29 33 27 14 Storage 11 | . 14 14 11 11 9 9 Protection 2 | . . . . . . 9 Energy Gun 15 | . 13 14 20 22 16 16 Ballistic Gun 6 | . 14 14 1 . . . Naked Turns . | . . . . . . . Heaviest Build 34 | 14 15 15 25 17 24 34 Greatest Support 88 | 20 20 20 29 18 26 88 Greatest Overweight (x) 11 | . . . 1 . . 11 Average Overweight (x) . | . . . . . . . Largest Inventory Capacity 10 | 8 8 8 8 8 10 10 Average Capacity 8 | 8 8 8 8 8 8 9 Most Carried 10 | 7 8 8 8 8 10 10 Average Carried 8 | 6 7 7 7 8 7 8 Final Capacity 10 | 8 8 8 8 8 8 10 Final Carried 8 | 7 8 8 8 8 8 4 Class Distribution -------------------- 79% | Mutant 15% | Scavenger-Mutant 5% | Sprinter Dominant Class ---------------- Mutant | -10/Materials Mutant | -10/Mines Mutant | -9/Materials Mutant | -9/Mines Mutant | -8/Materials Scavenger-Mutant | -8/Storage Resources | -11 -10 -10 -9 -9 -8 -8 ----------- Run | Yrd Mat Min Mat Min Mat Sto Matter Collected 945 | 206 192 129 110 . . 308 Remotely . | . . . . . . . Salvage Created 1001 | 64 200 230 . . 79 428 Parts 66 | 6 12 12 . . 9 27 Haulers Intercepted 1 | . . . . . 1 . Recyclers Shooed 5 | . . 3 . . . 2 Parts Field Recycled . | . . . . . . . Retrieved Matter . | . . . . . . . Parts Self-Destructed . | . . . . . . . Prevented . | . . . . . . . Kills | -11 -10 -10 -9 -9 -8 -8 ------- Run | Yrd Mat Min Mat Min Mat Sto Combat Hostiles Destroyed 21 | . 4 . . . 6 11 Guns 12 | . 4 . . . . 8 Cannons 3 | . . . . . . 3 AOE 6 | . . . . . 6 . Classes Destroyed 10 | 2 2 1 . . 3 2 Worker 1 | . . 1 . . . . Builder 1 | . . . . . 1 . Tunneler 2 | 1 . 1 . . . . Hauler 1 | . . . . . 1 . Recycler 4 | 1 . 3 . . . . Operator 2 | . 1 . . . . 1 Swarmer 6 | . . . . . 6 . Grunt 10 | . 4 . . . . 6 Duelist 1 | . . . . . . 1 Sentry 4 | . . . . . . 4 Best Kill Streak 4 | 2 4 2 . . 4 4 Combat Bots Only 4 | . 4 . . . 3 4 Max Kills in Single Turn 2 | 1 1 1 . . 2 1 Gunslinging . | . . . . . . . Exploded 2 | . . . . . 2 . Melee . | . . . . . . . Uniques/NPCs Destroyed . | . . . . . . . Combat | -11 -10 -10 -9 -9 -8 -8 -------- Run | Yrd Mat Min Mat Min Mat Sto Hostile Shots Fired 162 | . 17 3 . . 23 119 Missed 32 | . 5 . . . 13 14 Damage Taken 2251 | 26 142 43 . . 194 1846 Core 597 | . 46 . . . 34 517 Absorbed by Shields . | . . . . . . . Redirected to Shielding 74 | . . . . . . 74 Core Remaining (%) 93 | 100 . 81 . 100 . . Volleys Fired 73 | 2 12 10 . . 9 40 Largest 2 | 2 2 2 . . 2 2 Hottest 130 | 60 60 70 . . 126 130 Shots Fired 130 | 4 23 20 . . 13 70 Gun 116 | 4 23 20 . . 8 61 Cannon 9 | . . . . . . 9 Launcher 5 | . . . . . 5 . Special . | . . . . . . . Kinetic 33 | 2 12 10 . . . 9 Thermal 67 | . . 10 . . 8 49 Explosive 5 | . . . . . 5 . Electromagnetic 25 | 2 11 . . . . 12 Robot Hit Streak 13 | 4 7 4 . . 6 13 Robot Miss Streak 12 | . 3 3 . . 3 12 Penetration Max . | . . . . . . . Secondary Targets 3 | . 1 . . . . 2 Max Gunslinging Chain 1 | . 1 . . . . 1 Shots Hit Robots 93 | 4 15 11 . . 5 58 Core Hits 87 | 3 9 7 . . 8 60 Critical Kills 1 | . . . . . . 1 Critical Parts Destroyed . | . . . . . . . Critical Strikes 2 | . . . . . . 2 Burn 1 | . . . . . . 1 Destroy 1 | . . . . . . 1 Melee Attacks . | . . . . . . . Impact . | . . . . . . . Slashing . | . . . . . . . Piercing . | . . . . . . . Sneak Attacks . | . . . . . . . Combat Hostiles . | . . . . . . . Follow-up Attacks . | . . . . . . . Damage Inflicted 1929 | 93 195 139 . . 575 927 Guns 1253 | 37 195 139 . . 73 809 Cannons 114 | . . . . . . 114 Explosions 558 | 56 . . . . 502 . Melee . | . . . . . . . Ramming 4 | . . . . . . 4 Kinetic 296 | 11 117 54 . . . 114 Thermal 893 | 56 . 85 . . 73 679 Explosive 502 | . . . . . 502 . Electromagnetic 234 | 26 78 . . . . 130 Impact . | . . . . . . . Slashing . | . . . . . . . Piercing . | . . . . . . . Highest Corruption 3 | . . . 2 2 . 3 Average Corruption 2 | . . . 2 2 . 3 Corruption Purged . | . . . . . . . Corruption Blocked . | . . . . . . . Effects 6 | . . . 1 . . 5 Message Errors 2 | . . . 1 . . 1 Matter Fused 1 | . . . . . . 1 Energy Discharges 1 | . . . . . . 1 Parts Rejected 1 | . . . . . . 1 Parts Fused 1 | . . . . . . 1 Overload Shots . | . . . . . . . Overflow Damage 15 | . . . . . 15 . Projectiles . | . . . . . . . Explosions 15 | . . . . . 15 . Melee . | . . . . . . . Knockbacks . | . . . . . . . Impact . | . . . . . . . Kinetic . | . . . . . . . Secondary . | . . . . . . . Self-Inflicted Damage 98 | 26 . . . . 72 . Shots 3 | 1 . . . . 2 . Rammed 1 | . . . . . . 1 Targets Rammed 1 | . . . . . . 1 Kicked . | . . . . . . . Crushed . | . . . . . . . Highest Temperature 834 | 12 54 18 . . 126 834 Average Temperature 221 | 12 27 7 . . 53 318 Received Heat Transfer 930 | . 78 24 . . 27 801 Effects 52 | . . . . . . 52 Shutdowns 7 | . . . . . . 7 Energy Bleed 7 | . . . . . . 7 Interference 5 | . . . . . . 5 Matter Decay 3 | . . . . . . 3 Short Circuit 4 | . . . . . . 4 Damage (minor) 2 | . . . . . . 2 Damage (major) 21 | . . . . . . 21 Damage (core) 3 | . . . . . . 3 Siege Activations . | . . . . . . . Robots Corrupted . | . . . . . . . Combat Hostiles . | . . . . . . . Parts Fried 2 | . . . . . . 2 Impact Corruptions . | . . . . . . . Robots Melted . | . . . . . . . Combat Hostiles . | . . . . . . . Parts Melted 3 | . . . . . 1 2 Heat Transferred 1433 | 100 . 259 . . 148 926 Parts Sabotaged . | . . . . . . . Parts Stolen . | . . . . . . . Parts Stripped . | . . . . . . . Power Chain Reactions 1 | 1 . . . . . . Alert | -11 -10 -10 -9 -9 -8 -8 ------- Run | Yrd Mat Min Mat Min Mat Sto Peak Influence 398 | 10 118 116 87 30 398 343 Initial 167 | . 6 45 44 30 11 167 Average 123 | 7 36 69 67 30 139 255 Maximum Alert Level 1 | . . . . . 1 1 Low Security (%) 73 | 100 100 100 100 100 66 20 Level 1 26 | . . . . . 33 79 Level 2 . | . . . . . . . Level 3 . | . . . . . . . Level 4 . | . . . . . . . Level 5 . | . . . . . . . High Security . | . . . . . . . Max Security . | . . . . . . . Squads Dispatched 6 | . 1 . . . 3 2 Investigation . | . . . . . . . Extermination . | . . . . . . . Reinforcement 5 | . 1 . . . 3 1 Assault . | . . . . . . . Garrison 1 | . . . . . . 1 Intercept . | . . . . . . . Searches Triggered . | . . . . . . . Construction Impeded 1 | . . . . . 1 . Haulers Reinforced . | . . . . . . . Active Scanning Responses . | . . . . . . . Cargo Convoy Interrupts . | . . . . . . . Stealth | -11 -10 -10 -9 -9 -8 -8 --------- Run | Yrd Mat Min Mat Min Mat Sto Distress Signals 5 | . . . 1 . 3 1 Communications Jammed . | . . . . . . . Distress Signals . | . . . . . . . Times Spotted 46 | . 6 4 2 . 16 18 Peak Tracking Total 8 | . 4 2 2 . 8 5 Tactical Retreats 6 | . . 1 . . 4 1 Traps | -11 -10 -10 -9 -9 -8 -8 ------- Run | Yrd Mat Min Mat Min Mat Sto Traps Triggered 2 | . . . 1 . . 1 Indirectly . | . . . . . . . Trap Hack Attempts . | . . . . . . . Triggered . | . . . . . . . Disarmed . | . . . . . . . Reprogrammed . | . . . . . . . Reused . | . . . . . . . Traps Extracted . | . . . . . . . Installed . | . . . . . . . Triggered . | . . . . . . . Machines | -11 -10 -10 -9 -9 -8 -8 ---------- Run | Yrd Mat Min Mat Min Mat Sto Machines Disabled 1 | . . . . . 1 . Max in Single Turn 1 | . . . . . 1 . Machines Repaired . | . . . . . . . Machines Dismantled . | . . . . . . . Machines Sabotaged . | . . . . . . . Overloaded Fab Kills . | . . . . . . . Hacking | -11 -10 -10 -9 -9 -8 -8 --------- Run | Yrd Mat Min Mat Min Mat Sto Machines Accessed 10 | . 2 1 1 1 2 3 Terminals 8 | . 2 . 1 . 2 3 Fabricators . | . . . . . . . Repair Stations . | . . . . . . . Recycling Units . | . . . . . . . Scanalyzers . | . . . . . . . Garrison Access . | . . . . . . . Total Hacks 30 | . 9 1 4 1 6 9 Successful 20 | . 6 1 3 1 3 6 Failed 10 | . 3 . 1 . 3 3 Catastrophic 1 | . . . . . 1 . Database Lockouts . | . . . . . . . Manual 16 | . 5 . 2 . 4 5 Terminals 28 | . 9 . 4 . 6 9 Fabricators . | . . . . . . . Repair Stations . | . . . . . . . Recycling Units . | . . . . . . . Scanalyzers . | . . . . . . . Garrison Access . | . . . . . . . Terminal Hacks 10 | . 3 1 2 1 1 2 Robot Analysis 1 | . . . . . 1 . Open Door 2 | . . 1 . 1 . . Branch Access Points 1 | . . . . . . 1 Locate Traps 2 | . 1 . 1 . . . Zone Layout 4 | . 2 . 1 . . 1 Fabricator Hacks . | . . . . . . . Repair Station Hacks . | . . . . . . . Recycling Unit Hacks . | . . . . . . . Scanalyzer . | . . . . . . . Garrison Access Hacks . | . . . . . . . Unauthorized Hacks 10 | . 3 . 1 . 2 4 Terminals 10 | . 3 . 1 . 2 4 Track 2 | . 1 . . . . 1 Botnet 8 | . 2 . 1 . 2 3 Fabricators . | . . . . . . . Repair Stations . | . . . . . . . Recycling Units . | . . . . . . . Scanalyzers . | . . . . . . . Garrison Access . | . . . . . . . Data Cores Recovered 3 | . 1 . 1 . . 1 Used . | . . . . . . . Hacking Detections 8 | . 2 . 1 . 2 3 Full Trace Events . | . . . . . . . Feedback Events . | . . . . . . . Feedback Blocked . | . . . . . . . Robot Schematics Acquired . | . . . . . . . Robots Built . | . . . . . . . Authchips . | . . . . . . . Time . | . . . . . . . Total Robot Build Rating . | . . . . . . . Part Schematics Acquired . | . . . . . . . Parts Built . | . . . . . . . Authchips . | . . . . . . . Time . | . . . . . . . Total Part Build Rating . | . . . . . . . Parts Repaired . | . . . . . . . Time . | . . . . . . . Parts Recycled . | . . . . . . . Recycled Matter . | . . . . . . . Retrieved Matter . | . . . . . . . Retrieved Components . | . . . . . . . Parts Scanalyzed . | . . . . . . . Part Schematics Acquired . | . . . . . . . Parts Damaged . | . . . . . . . Bothacking | -11 -10 -10 -9 -9 -8 -8 ------------ Run | Yrd Mat Min Mat Min Mat Sto Used RIF Installer . | . . . . . . . Robots Hacked . | . . . . . . . Non-combat . | . . . . . . . Combat . | . . . . . . . Robot Hacks Applied . | . . . . . . . Relay Couplers Released . | . . . . . . . Fabnet Peak Effective % . | . . . . . . . Robots Rewired . | . . . . . . . Allies Hacked . | . . . . . . . Hacks Repelled . | . . . . . . . Allies | -11 -10 -10 -9 -9 -8 -8 -------- Run | Yrd Mat Min Mat Min Mat Sto Total Allies 3 | . . 3 . . . . Largest Group 3 | . . 3 3 . . . Highest-Rated Group 40 | . . 40 40 . . . Highest-Rated Ally 16 | . . 16 16 . . . Total Orders 1 | . . . 1 . . . ROAM 1 | . . . 1 . . . Ally Attacks 29 | . . 23 6 . . . Total Damage 342 | . . 265 77 . . . Kills 7 | . . 4 3 . . . Allies Corrupted . | . . . . . . . Allies Melted . | . . . . . . . Intel | -11 -10 -10 -9 -9 -8 -8 ------- Run | Yrd Mat Min Mat Min Mat Sto Robot Analysis Total 1 | . . . . . 1 . Derelict Logs Recovered 1 | . . 1 . . . . Drone Launches 1 | . . . 1 . . . Drone Recoveries 1 | . . . 1 . . . Exploration | -11 -10 -10 -9 -9 -8 -8 ------------- Run | Yrd Mat Min Mat Min Mat Sto Turns Passed 1887 | 26 269 602 184 29 265 512 Spaces Moved 1649 | 16 171 458 237 77 443 247 Core 6 | . . . . . . 6 Treads 138 | . . . . . . 138 Legs 351 | 16 171 164 . . . . Wheels 363 | . . 294 69 . . . Hover . | . . . . . . . Flight 791 | . . . 168 77 443 103 Fastest Speed 31 | 120 120 80 37 37 31 54 Average Speed 78 | 120 120 94 52 37 41 120 Slowest Speed 600 | 120 120 120 95 37 54 600 Overloaded Moves . | . . . . . . . Propulsion Burnouts . | . . . . . . . Robots Hopped 6 | . . . . . 6 . Cave-ins Triggered . | . . . . . . . Exploration Rate (%) 32 | 2 28 77 23 15 41 40 Regions Visited 6 Branch Regions 3 Pre-discovered Areas . | . . . . . . . Known Exits Taken . | . . . . . . . Unknown Exits Taken 6 | 1 1 1 1 1 1 . Scrap Searched 1 | . . 1 . . . . Spaces Dug . | . . . . . . . Terrain Destroyed 32 | 4 . . . . 22 6 Melee . | . . . . . . . Projectile 6 | . . . . . . 6 AOE 26 | 4 . . . . 22 . Terrain Rammed . | . . . . . . . Walls Destroyed . | . . . . . . . Machines Disabled . | . . . . . . . Actions | -11 -10 -10 -9 -9 -8 -8 --------- Run | Yrd Mat Min Mat Min Mat Sto Total 2105 | 18 211 610 298 76 504 388 Wait 290 | . 25 126 32 . 34 73 Move 1632 | 15 170 457 236 76 431 247 Hop 5 | . . . . . 5 . Pick Up 19 | 1 1 6 5 . 3 3 Fast Attach 25 | . 1 2 7 . 6 9 Attach 13 | . 1 . 3 . 3 6 Detach 7 | . . . 4 . 3 . Swap 9 | . 1 1 1 . 4 2 Drop 31 | . . 8 10 . 6 7 Fire 73 | 2 12 10 . . 9 40 Melee . | . . . . . . . Ram . | . . . . . . . Kick . | . . . . . . . Crush 1 | . . . . . . 1 Escape Stasis . | . . . . . . . Rewire . | . . . . . . . Trap . | . . . . . . . Miscellaneous . | . . . . . . . Route ------- -11/Scrapyard -10/Materials -10/Mines -9/Materials -9/Mines -8/Materials -8/Storage (discovered 1 exit: Rec) History --------- Turn | Location | Event 1 | -11/Scrapyard | Discovered new exit (range 3) 27 | -11/Scrapyard | Entered Materials 229 | -10/Materials | Discovered new exit (range 11) 296 | -10/Materials | Entered Mines 303 | -10/Mines | Received a Rocket Launcher from a helpful Derelict 326 | -10/Mines | Build established: Mutant 452 | -10/Mines | Found the Drone Emporium 471 | -10/Mines | Found Prototype Device 530 | -10/Mines | Learned Materials emergency access door positions 648 | -10/Mines | Assisted by bots powering up and referring to "LRC-V3" 653 | -10/Mines | A weapon hastily lodged in a ceiling crevice suddenly fell to the ground 883 | -10/Mines | Discovered new exit (range 8) 898 | -10/Mines | Entered Materials 898 | -9/Materials | Accompanied by 3 allies 898 | -9/Materials | Evolved 2 slots: Utility x2 898 | -9/Materials | Identified Splice Drone Bay 1074 | -9/Materials | Discovered new exit (range 15) 1082 | -9/Materials | Entered Mines 1084 | -9/Mines | Met a Derelict who couldn't figure out how to use a Trap Extractor 1091 | -9/Mines | Discovered new exit (range 12) 1111 | -9/Mines | Entered Materials 1111 | -8/Materials | Evolved 2 slots: Propulsion x2 1355 | -8/Materials | Discovered new exit (range 10) 1376 | -8/Materials | Entered Storage 1389 | -8/Storage | Identified exit to Recycling 1794 | -8/Storage | Garrison activated, responded to threat 1865 | -8/Storage | Core integrity fell below 50% 1876 | -8/Storage | Core integrity fell below 20% 1888 | -8/Storage | Destroyed by G-47 Trooper with Particle Gun Last Messages --------------- 01868_ Overheating: Core damaged (-71). 01868_ Mic. Nuclear Core destroyed. 01872_ Slug penetrates Wall. 01873_ Overheating: Med. Storage Unit damaged (-45). 01873_ Overheating: Slug Cannon damaged (-49). 01873_ Overheating: Adv. Beam Rifle damaged (-5). 01874_ Slug penetrates Earth. 01875_ Overheating: Slug Cannon damaged (-49). 01876_ Overheating: Core damaged (-60). 01876_ Adv. Beam Rifle destroyed. 01877_ Overheating: System interference. 01877_ Slug Cannon temporarily disabled. 01877_ Critical hit (Burn: +37). 01878_ Slug Cannon destroyed. 01879_ Rocket Launcher broken. 01879_ Overheating: Short circuit. 01882_ U-05 Engineer builds a Wall. 01882_ Broken Rocket Launcher destroyed. 01884_ Acquired 35 matter. 01886_ Acquired 37 matter. Map ----- +----------------------------------------------------+ | ??????????????????????????????? " #####+########## | | ???????????????????????????????"" # # """ | | ??????????????????????????????? # # """ | | ???????????????????????????????#### !# """ | | ??????????????????????????????? ## # | | ??????????????????????????????? ## """ # | | ??????????????????????????????? ## """ ###+## | | ????????????????????????# ????? # "Y" """ ## # | | ????????????????????????# ????? ## """ + # | | ????????????????????????# ????? ############# # | | ??????????????????#+##+##a##+##########?????### ^ | | ??????????????????# #?????#"" | | ?????????????????"" ^ ^^ #?????#"T ! | | ?????????????????T /!! #?????#"" | | ??????????????????# /!! #?????### | | ??????????????????# /^! #???????# | | ??????????????????# ! #???????# | | ???????????????????? w % ######### | | ???????????????????????#%%[[ ## # | | ???????????????????????# [[ ## == # | | ???????????????????????#u [k #### ## ! # ## | | ???????????????????????# #??# ## # ## | | ???????????????????????# m #??# ## ! + # | | ???????????????????????# ########## ## # # | | ??????????????????????###/####? # ######## # | | ??????????????????????# u@%[ #? ! + + | | ??????????????????????# g = #[ # !######## # | | ??????????????????????#uuY # ## ##?# #=# | | ?????????????????????# # [ ??# #### # # | | ?????????????????????## "T" # ???# ^ + # ## | | ?????????????????????## # ????# ^^ # # ## | | ????????????????????# ############/## ^^ # # | | ???????????????????# ????????# / + #### | | ??????????????????# ?????????# ######### #??? | | ?????????????????# ??????????????????????# #??? | | ?????????????????#????????????????????????#####??? | | ?????????????????????????????????????????????????? | | | | | | | | | | | | | | | | | | | | | | | | | | | +----------------------------------------------------+ Best States ------------- Heat Dissipation 31 Energy Generation 15 Energy Capacity 250 Matter Stores 300 Matter Capacity 300 Sight Range 16 Robot Scan Range 14 Terrain Scan Density 10 Additional Mass Support 9 Armor Coverage 150 Weapon Shielding 66 Evasion (%) 63 Recoil Reduction 4 Offensive Hacking 10 Item Schematics ----------------- None Robot Schematics ------------------ None Fabricated ------------ Nothing Alien Tech Used ----------------- None Achievements -------------- Error 47 Challenges ------------ None Game ------ Seed DeepEncryptedMagmablaster Manual? 0 Play Time 00:34:37 Cumulative 74.3 hours Start 2024.03.16 @ 18:19:26 End 2024.03.16 @ 19:07:33 Sessions 1 Manual Loads 0 Difficulty Rogue Special Mode None Game No. 69 Rogue 69 Adventurer 0 Explorer 0 Win Type - Total 2 Types 2/0/0/0/0/0/0/0/0 Lore% 37 Gallery% 51 Achievement% 41 Wizard Run 0 Options --------- Layout 1 ASCII 0 Keyboard 1 Movement Numpad Keybinds 0 Fullscreen 1 Font 32/SmallcapsGlow Map View 77x35 Zoom Use 0% Tactical HUD 1 Map Filters NONE Filters NONE Steam 1 RUN: 7904ece6-7f91-4f05-9c61-448549031d94